bitfinex/quotes_SOLUSD_20241220
["timestamp","ask_amount","ask_price","bid_price","bid_amount"]
[1734725376840,26.50936334,190.29,190.22,26.50936334]
[1734725377036,0.98556179,190.28,190.23,26.50936334]
[1734725377241,26.50936334,190.32,190.24,26.50936334]
[1734725377443,0.98546038,190.31,190.24,26.50936334]
[1734725378052,27.49482372,190.31,190.23,26.50936334]
[1734725378262,26.50936334,190.29,190.19,19.6151]
[1734725378461,26.50936334,190.24,190.16,26.50936334]
[1734725378666,0.98577814,190.23,190.16,26.50936334]
[1734725380937,26.50936334,190.22,190.14,32.63486334]
[1734725381159,0.98603685,190.21,190.14,26.50936334]
[1734725383464,26.50936334,190.18,190.09,6.6364]
[1734725383645,26.50936334,190.16,190.09,6.6364]
[1734725383859,0.98624951,190.15,190.09,6.6364]
[1734725384381,0.98624951,190.15,190.1,26.50936334]
[1734725384747,0.98622461,190.17,190.1,26.50936334]
[1734725385759,0.98622029,190.16,190.1,26.50936334]
[1734725385959,0.9862211,190.19,190.1,26.50936334]
[1734725386975,0.9862211,190.19,190.09,6.6364]
[1734725386976,0.9862211,190.19,190.12,26.50936334]
[1734725387663,26.50936334,190.18,190.1,26.50936334]
[1734725387863,0.98622646,190.17,190.1,26.50936334]
[1734725388286,0.98622646,190.17,190.08,13.1523]
[1734725388454,0.98622646,190.17,190.05,39.66376334]
[1734725388455,26.50936334,190.14,190.05,39.66376334]
[1734725388656,0.98642753,190.13,190.07,26.50936334]
[1734725389073,0.98642753,190.13,190.09,26.50936334]
[1734725389280,0.98642753,190.13,190.05,13.1544]
[1734725389281,0.98640874,190.15,190.11,26.50936334]
[1734725389855,0.9861889,190.17,190.11,26.50936334]
[1734725390589,0.9861889,190.17,190.12,26.50936334]
[1734725391084,0.98608196,190.19,190.12,26.50936334]
[1734725391296,26.50936334,190.16,190.09,13.1512]
[1734725391597,0.98620945,190.15,190.09,26.50936334]
[1734725393287,0.98620945,190.15,190.07,26.50936334]
[1734725393515,0.98620945,190.15,190.09,26.50936334]
[1734725393727,0.98619221,190.17,190.09,26.50936334]
[1734725396526,0.98619221,190.17,190.11,26.50936334]
[1734725396817,0.9861033,190.19,190.13,26.50936334]
[1734725397017,26.50936334,190.22,190.13,26.50936334]
[1734725397217,0.98594864,190.21,190.13,26.50936334]
[1734725398017,0.98594864,190.21,190.13,39.65776334]
[1734725399220,0.98594864,190.21,190.15,26.50936334]
[1734725399422,0.98590466,190.23,190.15,26.50936334]
[1734725400331,0.98590466,190.23,190.17,26.50936334]
[1734725400513,0.98576674,190.25,190.19,26.50936334]
[1734725400717,26.50936334,190.24,190.17,26.50936334]
[1734725401034,26.50936334,190.18,190.11,32.80196334]
[1734725401206,0.98609107,190.17,190.11,32.80196334]
[1734725402127,0.98609107,190.17,190.07,1.6091]
[1734725402305,0.98609107,190.17,190.06,46.23776334]
[1734725402306,26.50936334,190.14,190.06,46.23776334]
[1734725402507,0.98638479,190.13,190.06,46.23776334]
[1734725405244,0.98638479,190.13,190.08,26.50936334]
[1734725405429,0.98629508,190.15,190.08,26.50936334]
[1734725406333,26.50936334,190.16,190.08,26.50936334]
[1734725407040,26.50936334,190.18,190.1,26.50936334]
[1734725407334,0.98614201,190.17,190.1,26.50936334]
[1734725407738,0.98614201,190.17,190.08,13.1518]
[1734725407739,0.98616054,190.21,190.12,26.50936334]
[1734725407920,0.98616054,190.21,190.14,26.50936334]
[1734725408911,0.98585138,190.25,190.19,26.50936334]
[1734725409211,0.98585138,190.25,190.2,26.50936334]
[1734725409414,0.98565979,190.26,190.2,26.50936334]
[1734725409626,32.62296334,190.31,190.23,26.50936334]
[1734725409836,0.98548389,190.3,190.23,26.50936334]
[1734725410639,27.49483879,190.35,190.27,26.50936334]
[1734725410841,0.98547545,190.35,190.28,26.50936334]
[1734725411345,0.98513265,190.35,190.3,26.50936334]
[1734725411843,0.98512802,190.36,190.3,26.50936334]
[1734725412035,0.98512802,190.36,190.31,26.50936334]
[1734725412231,27.49444083,190.38,190.3,26.50936334]
[1734725413526,26.50936334,190.37,190.3,26.50936334]
[1734725413733,26.50936334,190.35,190.27,26.50936334]
[1734725413933,26.50936334,190.36,190.28,26.50936334]
[1734725414120,26.50936334,190.39,190.32,26.50936334]
[1734725414314,0.98514405,190.41,190.27,13.1392]
[1734725414315,26.50936334,190.37,190.3,20.0]
[1734725414546,26.50936334,190.37,190.31,26.50936334]
[1734725415047,0.98502675,190.38,190.31,26.50936334]
[1734725415354,0.98502675,190.38,190.3,20.0]
[1734725415355,26.50936334,190.41,190.33,26.50936334]
[1734725415519,6.0313,190.47,190.3,33.1371]
[1734725415520,0.98488219,190.4,190.34,26.50936334]
[1734725415728,26.50936334,190.43,190.35,26.50936334]
[1734725416542,27.49406447,190.42,190.34,26.50936334]
[1734725416720,26.50936334,190.4,190.32,26.50936334]
[1734725416918,26.50936334,190.4,190.3,33.1371]
[1734725416919,0.98498515,190.39,190.33,26.50936334]
[1734725417120,26.50936334,190.41,190.33,26.50936334]
[1734725417346,26.50936334,190.43,190.35,26.50936334]
[1734725417640,26.50936334,190.44,190.36,26.50936334]
[1734725418029,26.50936334,190.44,190.38,26.50936334]
[1734725418235,0.98479592,190.46,190.38,26.50936334]
[1734725418236,27.49415926,190.46,190.38,26.50936334]
[1734725419052,19.1845,190.52,190.32,0.49999207]
[1734725419053,26.50936334,190.5,190.43,26.50936334]
[1734725419238,0.98445739,190.49,190.46,26.50936334]
[1734725419548,7.6739,190.57,190.38,13.131]
[1734725419549,0.98440708,190.52,190.38,13.131]
[1734725420128,0.98447063,190.56,190.42,20.0]
[1734725420542,26.50936334,190.54,190.46,26.50936334]
[1734725420765,0.98423017,190.53,190.48,26.50936334]
[1734725421049,0.98418991,190.54,190.49,26.50936334]
[1734725421234,27.49355325,190.54,190.46,26.50936334]
[1734725421433,26.50936334,190.48,190.35,0.08357655]
[1734725421752,26.50936334,190.43,190.35,26.59293989]
[1734725421927,0.98494536,190.49,190.37,26.50936334]
[1734725422126,26.50936334,190.45,190.37,26.50936334]
[1734725422332,26.50936334,190.41,190.35,0.08357655]
[1734725422544,0.98494528,190.4,190.35,26.59293989]
[1734725422748,0.98494525,190.42,190.35,26.59293989]
[1734725422922,0.98494525,190.42,190.37,26.50936334]
[1734725423251,27.49415092,190.41,190.35,0.08357655]
[1734725423435,0.98478758,190.41,190.35,0.08357655]
[1734725423751,26.50936334,190.39,190.35,0.08357655]
[1734725423946,0.98512897,190.38,190.35,0.08357655]
[1734725424570,26.50936334,190.43,190.35,26.59293989]
[1734725424769,0.98491409,190.42,190.35,26.59293989]
[1734725425063,0.98477713,190.42,190.37,26.50936334]
[1734725425268,0.98477713,190.42,190.35,26.59293989]
[1734725426141,0.98477713,190.42,190.35,39.72643989]
[1734725426353,0.98477713,190.42,190.37,26.50936334]
[1734725426563,27.49425293,190.41,190.35,0.08357655]
[1734725426738,0.98488959,190.41,190.35,26.59293989]
[1734725427236,0.98488169,190.42,190.35,26.59293989]
[1734725427956,26.50936334,190.45,190.37,26.50936334]
[1734725428153,0.98469256,190.44,190.39,26.50936334]
[1734725428460,0.98467181,190.46,190.39,26.50936334]
[1734725429844,26.50936334,190.45,190.37,26.50936334]
[1734725430157,26.50936334,190.43,190.35,26.59293989]
[1734725430463,0.98489652,190.42,190.35,26.59293989]
[1734725430962,26.50936334,190.41,190.35,0.08357655]
[1734725431141,46.50936334,190.36,190.35,0.08357655]
[1734725431349,26.50936334,190.29,190.19,26.50936334]
[1734725431540,0.98553537,190.28,190.21,26.50936334]
[1734725432454,21.6399,190.36,190.26,26.50936334]
[1734725432455,26.50936334,190.32,190.26,26.50936334]
[1734725432648,0.98538722,190.31,190.24,26.50936334]
[1734725434062,26.50936334,190.3,190.22,26.50936334]
[1734725434359,26.50936334,190.26,190.2,26.50936334]
[1734725434565,26.50936334,190.28,190.2,26.50936334]
[1734725434863,0.98559091,190.27,190.2,26.50936334]
[1734725437867,26.50936334,190.21,190.1,19.6335]
[1734725438054,26.50936334,190.17,190.1,32.99236334]
[1734725438261,0.98622869,190.16,190.1,6.483]
[1734725438440,26.50936334,190.15,190.06,33.12306334]
[1734725438644,26.50936334,190.19,190.1,26.50936334]
[1734725438842,0.98618691,190.18,190.14,26.50936334]
[1734725439044,1.6106,190.23,190.06,19.7672]
[1734725439045,0.98596779,190.2,190.16,26.50936334]
[1734725439358,0.98596779,190.23,190.16,26.50936334]
[1734725439748,27.49533113,190.23,190.16,26.50936334]
[1734725441177,26.50936334,190.18,190.1,26.50936334]
[1734725441356,26.50936334,190.15,190.08,26.50936334]
[1734725441555,0.98624465,190.14,190.08,26.50936334]
[1734725442548,26.50936334,190.17,190.08,26.50936334]
[1734725442746,0.98613336,190.16,190.09,20.0]
[1734725443253,26.50936334,190.15,190.09,20.0]
[1734725443453,26.50936334,190.15,190.08,26.50936334]
[1734725443454,0.98625193,190.14,190.08,26.50936334]
[1734725444346,0.98622418,190.16,190.08,26.50936334]
[1734725445168,0.98622418,190.16,190.1,26.50936334]
[1734725445670,26.50936334,190.19,190.12,26.50936334]
[1734725445850,0.98622409,190.23,190.15,26.50936334]
[1734725445851,26.50936334,190.22,190.15,26.50936334]
[1734725446051,0.98596456,190.21,190.15,26.50936334]
[1734725446257,0.98596456,190.21,190.16,26.50936334]
[1734725447056,0.9859083,190.22,190.16,26.50936334]
[1734725447351,0.9859083,190.22,190.17,26.50936334]
[1734725447756,0.98580928,190.24,190.17,26.50936334]
[1734725448071,27.49517262,190.24,190.17,26.50936334]
[1734725448570,0.98581737,190.26,190.2,26.50936334]
[1734725448774,27.49518071,190.26,190.18,26.50936334]
[1734725448970,0.98581737,190.26,190.19,26.50936334]
[1734725449175,26.50936334,190.25,190.17,32.55466334]
[1734725449472,0.98574097,190.24,190.18,26.50936334]
[1734725449787,0.98570951,190.25,190.19,26.50936334]
[1734725450481,26.50936334,190.28,190.19,39.65406334]
[1734725450653,0.98561991,190.27,190.19,39.65406334]
[1734725453070,26.50936334,190.26,190.19,39.65406334]
[1734725453373,0.98566496,190.25,190.19,39.65406334]
[1734725454989,26.50936334,190.26,190.19,39.65406334]
[1734725455275,26.50936334,190.24,190.17,32.55466334]
[1734725455573,0.98581969,190.23,190.17,6.0453]
[1734725455946,0.98581969,190.23,190.17,32.55466334]
[1734725456147,26.50936334,190.26,190.19,26.50936334]
[1734725456447,0.98561652,190.25,190.19,26.50936334]
[1734725456647,26.50936334,190.26,190.19,26.50936334]
[1734725456851,0.98565815,190.25,190.19,26.50936334]
[1734725457069,26.50936334,190.26,190.19,26.50936334]
[1734725457267,0.98563226,190.25,190.19,26.50936334]
[1734725457783,26.50936334,190.24,190.18,13.1454]
[1734725457965,0.98576072,190.23,190.18,13.1454]
[1734725458663,26.50936334,190.24,190.18,13.1454]
[1734725459061,0.98572322,190.23,190.18,13.1454]
[1734725459581,27.49512208,190.24,190.18,13.1454]
[1734725460486,26.50936334,190.24,190.18,13.1454]
[1734725460782,26.50936334,190.26,190.18,13.1454]
[1734725461080,0.98568037,190.25,190.18,13.1454]
[1734725461294,26.50936334,190.22,190.15,13.1473]
[1734725461601,26.50936334,190.18,190.11,6.6611]
[1734725461806,0.98613228,190.17,190.09,28.08016334]
[1734725461966,0.98613228,190.17,190.08,13.1521]
[1734725461967,26.50936334,190.16,190.08,13.1521]
[1734725462167,0.98623452,190.15,190.08,13.1521]
[1734725463202,26.50936334,190.18,190.11,26.50936334]
[1734725463362,0.98607636,190.17,190.11,26.50936334]
[1734725463870,32.3005,190.31,190.1,13.1509]
[1734725463871,26.50936334,190.22,190.13,26.50936334]
[1734725464079,0.98588531,190.21,190.15,26.50936334]
[1734725464279,0.98588531,190.21,190.13,46.50936334]
[1734725464582,0.98582476,190.21,190.15,26.50936334]
[1734725464758,26.50936334,190.22,190.15,26.50936334]
[1734725464959,26.50936334,190.24,190.17,26.50936334]
[1734725465184,27.49510107,190.24,190.17,26.50936334]
[1734725467403,0.9857726,190.23,190.17,26.50936334]
[1734725468963,26.50936334,190.28,190.21,26.50936334]
[1734725469182,6.0263,190.31,190.23,26.50936334]
[1734725469183,26.50936334,190.31,190.23,26.50936334]
[1734725469479,26.50936334,190.26,190.19,26.50936334]
[1734725469787,0.98571397,190.25,190.19,26.50936334]
[1734725469978,0.98571118,190.25,190.19,26.50936334]
[1734725470497,26.50936334,190.26,190.19,26.50936334]
[1734725470673,0.98564404,190.25,190.19,26.50936334]
[1734725470992,26.50936334,190.24,190.17,39.65486334]
[1734725471166,0.98574904,190.23,190.17,39.65486334]
[1734725471370,0.98574904,190.23,190.17,13.1455]
[1734725471783,26.50936334,190.22,190.16,6.5403]
[1734725472485,26.50936334,190.24,190.17,26.50936334]
[1734725472686,0.98577331,190.23,190.17,26.50936334]
[1734725472982,26.50936334,190.28,190.19,26.50936334]
[1734725473189,0.98562269,190.27,190.19,26.50936334]
[1734725473785,26.50936334,190.31,190.24,26.50936334]
[1734725473966,0.98543786,190.3,190.24,26.50936334]
[1734725474167,27.49473032,190.31,190.24,26.50936334]
[1734725475279,0.98536698,190.31,190.24,26.50936334]
[1734725475478,27.49473032,190.31,190.24,26.50936334]
[1734725475879,27.49473032,190.31,190.23,39.65086334]
[1734725476192,0.98536698,190.31,190.25,26.50936334]
[1734725476391,0.98535996,190.32,190.25,26.50936334]
[1734725476563,0.98535996,190.32,190.26,26.50936334]
[1734725476766,26.50936334,190.36,190.28,26.50936334]
[1734725476993,0.9852143,190.35,190.29,26.50936334]
[1734725477178,26.50936334,190.39,190.31,26.50936334]
[1734725477482,0.98502264,190.38,190.31,26.50936334]
[1734725477863,0.98502264,190.38,190.26,6.89874655]
[1734725477864,26.50936334,190.41,190.34,26.50936334]
[1734725478070,26.50936334,190.38,190.31,26.50936334]
[1734725478263,26.50936334,190.39,190.31,26.50936334]
[1734725478484,26.50936334,190.39,190.32,26.50936334]
[1734725478903,26.50936334,190.43,190.35,26.50936334]
[1734725479072,0.98484471,190.42,190.36,26.50936334]
[1734725479276,27.49420805,190.42,190.35,26.50936334]
[1734725479598,1.6488,190.45,190.34,20.0]
[1734725479599,27.49418341,190.41,190.34,20.0]
[1734725479765,26.50936334,190.4,190.34,20.0]
[1734725480088,26.50936334,190.43,190.35,26.50936334]
[1734725480301,27.49411522,190.42,190.35,26.50936334]
[1734725480886,26.50936334,190.44,190.35,26.50936334]
[1734725481076,0.98475483,190.43,190.35,26.50936334]
[1734725481490,0.98475483,190.43,190.35,39.64306334]
[1734725481796,26.50936334,190.46,190.39,26.50936334]
[1734725482091,0.98459647,190.45,190.39,26.50936334]
[1734725482277,26.50936334,190.44,190.35,26.50936334]
[1734725482473,26.50936334,190.4,190.33,26.50936334]
[1734725482675,0.98499501,190.39,190.33,26.50936334]
[1734725483171,0.98498177,190.41,190.33,26.50936334]
[1734725483372,26.50936334,190.36,190.28,26.50936334]
[1734725483572,26.50936334,190.36,190.29,26.50936334]
[1734725483878,26.50936334,190.33,190.24,26.50936334]
[1734725484200,26.50936334,190.31,190.23,26.50936334]
[1734725484371,0.98549222,190.3,190.23,26.50936334]
[1734725484890,26.50936334,190.34,190.27,26.50936334]
[1734725485095,0.98528192,190.33,190.27,26.50936334]
[1734725485985,0.98528192,190.33,190.26,20.0]
[1734725486601,26.50936334,190.34,190.27,26.50936334]
[1734725486799,26.50936334,190.36,190.27,26.50936334]
[1734725487099,0.98528671,190.37,190.27,26.50936334]
[1734725487100,0.98518389,190.4,190.33,26.50936334]
[1734725487485,27.49454723,190.4,190.32,26.50936334]
[1734725487788,27.49454723,190.4,190.33,26.50936334]
[1734725490701,26.50936334,190.38,190.31,26.50936334]
[1734725490901,0.98508423,190.37,190.31,26.50936334]
[1734725494307,26.50936334,190.4,190.31,26.50936334]
[1734725494508,0.98500211,190.39,190.31,26.50936334]
[1734725496795,0.98490808,190.39,190.33,26.50936334]
[1734725496996,0.98490808,190.39,190.31,39.64526334]
[1734725497497,26.50936334,190.4,190.31,39.64526334]
[1734725497706,0.98498141,190.39,190.31,39.64526334]
[1734725497911,26.50936334,190.38,190.31,26.50936334]
[1734725498208,26.50936334,190.36,190.28,13.1382]
[1734725498386,0.98513141,190.35,190.28,13.1382]
[1734725498783,0.98513141,190.35,190.27,26.50936334]
[1734725499910,26.50936334,190.34,190.27,26.50936334]
[1734725500113,0.98531999,190.33,190.27,26.50936334]
[1734725500316,26.50936334,190.34,190.27,26.50936334]
[1734725500485,0.98525901,190.39,190.27,26.50936334]
[1734725500691,26.50936334,190.38,190.29,26.50936334]
[1734725500892,0.9850939,190.37,190.29,26.50936334]
[1734725501192,26.50936334,190.36,190.29,26.50936334]
[1734725502300,26.50936334,190.38,190.29,26.50936334]
[1734725502500,0.9850921,190.37,190.29,26.50936334]
[1734725502816,6.2762,190.43,190.33,16.57946447]
[1734725502817,16.57946447,190.4,190.33,16.57946447]
[1734725504023,16.57946447,190.38,190.29,18.17886447]
[1734725504225,16.57946447,190.38,190.3,16.57946447]
[1734725504519,16.57946447,190.39,190.31,16.57946447]
[1734725504794,16.57946447,190.42,190.34,16.57946447]
[1734725504947,0.98481452,190.41,190.35,16.57946447]
[1734725505107,0.98484683,190.42,190.35,16.57946447]
[1734725505642,0.98484683,190.42,190.36,16.57946447]
[1734725505817,0.98484683,190.42,190.35,16.57946447]
[1734725506123,1.6135,190.46,190.38,16.57946447]
[1734725506124,17.56423772,190.46,190.38,16.57946447]
[1734725506426,16.57946447,190.47,190.39,16.57946447]
[1734725506627,0.98455919,190.46,190.39,16.57946447]
[1734725507216,16.57946447,190.48,190.4,16.57946447]
[1734725507402,17.56398025,190.47,190.4,16.57946447]
[1734725507604,17.56398025,190.47,190.39,16.57946447]
[1734725507929,16.57946447,190.46,190.39,16.57946447]
[1734725508506,16.57946447,190.47,190.39,16.57946447]
[1734725508712,26.50063839,190.47,190.4,26.50063839]
[1734725510038,26.50063839,190.48,190.4,26.50063839]
[1734725510518,27.48512811,190.47,190.4,26.50063839]
[1734725510718,26.50063839,190.47,190.39,26.50063839]
[1734725513011,26.50063839,190.41,190.31,8.04449109]
[1734725513213,26.50063839,190.42,190.35,26.50063839]
[1734725513629,26.50063839,190.44,190.37,26.50063839]
[1734725513926,27.48533226,190.43,190.36,26.50063839]
[1734725514125,26.50063839,190.43,190.36,26.50063839]
[1734725514326,26.50063839,190.44,190.36,26.50063839]
[1734725514822,26.50063839,190.43,190.35,39.63373839]
[1734725515227,26.50063839,190.45,190.38,26.50063839]
[1734725515438,26.50063839,190.47,190.38,26.50063839]
[1734725515623,26.50063839,190.47,190.4,26.50063839]
[1734725516343,26.50063839,190.48,190.4,26.50063839]
[1734725516642,26.50063839,190.46,190.38,26.50063839]
[1734725516819,0.98461853,190.45,190.38,26.50063839]
[1734725517023,26.50063839,190.46,190.38,26.50063839]
[1734725517826,26.50063839,190.44,190.35,39.63393839]
[1734725518026,0.98472679,190.43,190.35,39.63393839]
[1734725518222,26.50063839,190.4,190.33,26.50063839]
[1734725518427,26.50063839,190.38,190.32,6.2045]
[1734725519333,26.50063839,190.4,190.32,6.2045]
[1734725519631,0.98492243,190.39,190.32,6.2045]
[1734725520232,26.50063839,190.4,190.32,6.2045]
[1734725520617,26.50063839,190.4,190.33,26.50063839]
[1734725521012,26.50063839,190.42,190.33,26.50063839]
[1734725521318,26.50063839,190.44,190.35,26.50063839]
[1734725521519,0.98477378,190.43,190.35,26.50063839]
[1734725521841,26.50063839,190.42,190.33,26.50063839]
[1734725522029,26.50063839,190.4,190.32,6.2045]
[1734725522642,26.50063839,190.4,190.33,26.50063839]
[1734725522844,26.50063839,190.42,190.35,26.50063839]
[1734725523032,26.50063839,190.44,190.35,26.50063839]
[1734725523215,0.98471608,190.43,190.35,26.50063839]
[1734725523622,27.48535167,190.48,190.39,26.50063839]
[1734725523839,0.98471328,190.48,190.41,26.50063839]
[1734725524045,0.9844673,190.49,190.41,26.50063839]
[1734725524423,26.50063839,190.46,190.39,26.50063839]
[1734725524723,26.50063839,190.42,190.35,26.50063839]
[1734725524923,0.98486206,190.41,190.33,26.50063839]
[1734725525443,26.50063839,190.4,190.33,26.50063839]
[1734725525746,0.9848862,190.39,190.33,26.50063839]
[1734725526523,26.50063839,190.4,190.33,26.50063839]
[1734725526724,26.50063839,190.44,190.35,26.50063839]
[1734725526943,26.50063839,190.42,190.35,26.50063839]
[1734725527266,0.98487535,190.41,190.33,26.50063839]
[1734725527749,26.50063839,190.4,190.31,26.50063839]
[1734725527953,0.98502106,190.39,190.31,26.50063839]
[1734725528246,0.98502106,190.41,190.33,26.50063839]
[1734725528628,0.98502106,190.41,190.29,2.06597849]
[1734725528825,1.5388,190.45,190.37,26.50063839]
[1734725529024,26.50063839,190.46,190.37,26.50063839]
[1734725529335,26.50063839,190.44,190.37,26.50063839]
[1734725529541,0.98479892,190.43,190.37,26.50063839]
[1734725530556,0.98479892,190.43,190.35,39.63423839]
[1734725530859,16.57123822,190.41,190.33,16.57123822]
[1734725531726,0.9848551,190.4,190.33,16.57123822]
[1734725531925,0.9848551,190.4,190.32,13.1356]
[1734725532132,0.9848551,190.4,190.33,8.22482656]
[1734725532355,16.57123822,190.43,190.36,16.57123822]
[1734725532836,16.57123822,190.45,190.38,16.57123822]
[1734725533335,16.57123822,190.43,190.34,16.57123822]
[1734725533543,16.57123822,190.39,190.32,29.70683822]
[1734725533845,0.98499029,190.38,190.3,16.57123822]
[1734725534795,16.57123822,190.41,190.32,16.57123822]
[1734725535052,0.98489344,190.4,190.34,16.57123822]
[1734725536366,16.57123822,190.41,190.34,16.57123822]
[1734725536648,0.98486836,190.4,190.32,29.70673822]
[1734725536838,16.57123822,190.39,190.32,16.57123822]
[1734725537151,16.57123822,190.43,190.34,16.57123822]
[1734725537351,51.2765,190.49,190.36,16.57123822]
[1734725537352,16.57123822,190.45,190.36,16.57123822]
[1734725537538,16.57123822,190.47,190.38,16.57123822]
[1734725537737,0.98460899,190.46,190.38,16.57123822]
[1734725538149,17.55584343,190.47,190.4,16.57123822]
[1734725538352,16.57123822,190.49,190.4,16.57123822]
[1734725538575,16.57123822,190.49,190.38,13.1313]
[1734725538576,17.55572102,190.49,190.42,16.57123822]
[1734725538866,16.57123822,190.51,190.44,16.57123822]
[1734725539036,0.98444599,190.52,190.44,16.57123822]
[1734725539238,0.98432654,190.52,190.47,16.57123822]
[1734725539440,0.98426988,190.53,190.47,16.57123822]
[1734725540335,16.57123822,190.55,190.48,16.57123822]
[1734725540555,0.98416692,190.56,190.5,16.57123822]
[1734725540764,28.04172858,190.6,190.53,26.47372858]
[1734725541068,0.9839087,190.59,190.53,26.47372858]
[1734725541257,0.98387558,190.6,190.54,26.47372858]
[1734725541961,0.98387558,190.6,190.49,20.0]
[1734725541962,0.98387558,190.6,190.53,26.47372858]
[1734725542142,27.45760416,190.6,190.53,26.47372858]
[1734725543563,26.47372858,190.58,190.51,26.47372858]
[1734725543767,26.47372858,190.56,190.49,26.47372858]
[1734725543962,26.47372858,190.57,190.51,26.47372858]
[1734725544148,26.47372858,190.6,190.52,26.47372858]
[1734725544353,0.98395883,190.59,190.53,26.47372858]
[1734725545052,0.98395883,190.59,190.52,26.47372858]
[1734725545470,26.47372858,190.57,190.5,26.47372858]
[1734725545677,27.45786796,190.56,190.48,26.47372858]
[1734725546394,26.47372858,190.55,190.47,26.47372858]
[1734725546675,0.98424232,190.54,190.47,26.47372858]
[1734725547049,0.98424232,190.54,190.45,1.5786]
[1734725547050,26.47372858,190.53,190.45,26.47372858]
[1734725547267,0.98432955,190.52,190.45,26.47372858]
[1734725547467,26.47372858,190.5,190.42,32.51982858]
[1734725548155,26.47372858,190.52,190.44,26.47372858]
[1734725548569,27.45811478,190.54,190.46,26.47372858]
[1734725548952,26.47372858,190.56,190.49,26.47372858]
[1734725549153,29.04086815,190.59,190.51,26.47372858]
[1734725549374,26.47372858,190.57,190.49,26.47372858]
[1734725549546,0.98410419,190.56,190.49,26.47372858]
[1734725549747,27.45783277,190.56,190.48,46.47372858]
[1734725549946,27.45783277,190.56,190.49,26.47372858]
[1734725550362,27.45783277,190.56,190.48,20.0]
[1734725550363,0.98410419,190.56,190.5,26.47372858]
[1734725550652,27.45783251,190.57,190.5,26.47372858]
[1734725551673,27.45783251,190.57,190.48,46.47372858]
[1734725552270,23.776884,190.56,190.5,26.47372858]
[1734725553654,1.583,190.59,190.53,26.47372858]
[1734725553860,0.98395936,190.59,190.53,26.47372858]
[1734725554062,26.47372858,190.6,190.53,26.47372858]
[1734725554259,0.98388365,190.59,190.54,26.47372858]
[1734725554659,0.98388365,190.59,190.54,26.55799942]
[1734725555073,0.98388365,190.59,190.54,26.64690885]
[1734725557176,50.25061258,190.56,190.54,0.17318027]
[1734725557378,23.776884,190.56,190.54,0.17318027]
[1734725557581,0.98412788,190.55,190.54,0.17318027]
[1734725557788,23.776884,190.56,190.54,0.17318027]
[1734725558079,26.47372858,190.6,190.54,0.17318027]
[1734725558260,26.47372858,190.58,190.54,0.17318027]
[1734725558461,0.98401391,190.57,190.54,0.17318027]
[1734725558773,50.25061258,190.55,190.54,0.17318027]
[1734725559466,51.23490304,190.55,190.54,0.17318027]
[1734725560764,41.31686731,190.55,190.54,0.17318027]
[1734725561572,16.55569285,190.55,190.54,0.17318027]
[1734725561962,16.55569285,190.57,190.54,0.17318027]
[1734725562162,0.98408341,190.56,190.54,0.17318027]
[1734725564082,16.55569285,190.59,190.54,0.17318027]
[1734725564285,16.55569285,190.58,190.54,0.17318027]
[1734725564464,17.53966479,190.58,190.54,0.17318027]
[1734725565763,0.98397194,190.58,190.54,0.17318027]
[1734725567774,17.53966479,190.58,190.54,0.17318027]
[1734725569282,1.61,190.65,190.55,16.55569285]
[1734725569283,17.53964285,190.62,190.55,16.55569285]
[1734725569493,0.98395,190.62,190.55,16.55569285]
[1734725569799,0.98384806,190.62,190.57,16.55569285]
[1734725569969,0.98373729,190.63,190.57,16.55569285]
[1734725570681,0.98373729,190.63,190.56,16.55569285]
[1734725572493,17.53943014,190.63,190.56,16.55569285]
[1734725573480,0.98373729,190.63,190.57,16.55569285]
[1734725573883,0.98373195,190.65,190.59,16.55569285]
[1734725575276,0.6901256,190.68,190.59,16.55569285]
[1734725575277,0.6901256,190.68,190.64,16.55569285]
[1734725575690,0.6901256,190.68,190.65,16.55569285]
[1734725576186,0.6901256,190.68,190.66,16.55569285]
[1734725577291,0.6901256,190.68,190.67,16.55569285]
[1734725578295,2.56e-05,190.68,190.67,18.11539285]
[1734725578606,2.56e-05,190.68,190.67,18.61182697]
[1734725578772,2.56e-05,190.68,190.67,31.72342697]
[1734725579286,2.56e-05,190.68,190.67,48.27911982]
[1734725579688,7.5989,190.85,190.71,20.0]
[1734725579689,0.98282017,190.81,190.71,20.0]
[1734725579879,0.98275173,190.82,190.76,16.55569285]
[1734725580077,0.98275173,190.82,190.77,16.55569285]
[1734725580682,0.98275173,190.82,190.79,16.55569285]
[1734725580997,17.53828734,190.89,190.81,16.55569285]
[1734725581310,1.67260276,190.87,190.82,16.55569285]
[1734725581504,0.6901256,190.87,190.85,16.55569285]
[1734725581886,0.6901256,190.87,190.86,16.55569285]
[1734725582581,27.08143661,190.87,190.79,6.6489]
[1734725582795,27.37384117,190.86,190.79,33.04021101]
[1734725582997,0.98257222,190.85,190.79,33.04021101]
[1734725583384,27.08143661,190.87,190.8,26.39131101]
[1734725583584,0.98251623,190.86,190.8,26.39131101]
[1734725583989,0.98251623,190.86,190.79,33.04021101]
[1734725584818,26.39131101,190.83,190.8,0.08427084]
[1734725585106,0.98272921,190.82,190.8,0.17318027]
[1734725585498,23.776884,190.85,190.8,0.17318027]
[1734725585499,51.15092286,190.81,190.8,0.17318027]